fUSD/lending_fUSD_20260319
["ID","MTS","AMOUNT","RATE_DAILY","PERIOD"]
[408609530,1773940253645,-258.946479,0.00016,2]
[408609531,1773940253655,-412.338748,0.00016,2]
[408609532,1773940253665,-258.946479,0.00016,2]
[408609533,1773940253674,-412.338748,0.00016,2]
[408609534,1773940253690,-258.946479,0.00016,2]
[408609535,1773940253699,-151.0,0.00016,2]
[408609536,1773940253709,-151.0,0.00016,2]
[408609537,1773940253719,-151.0,0.00016,2]
[408609538,1773940253730,-151.0,0.00016,2]
[408609539,1773940253741,-212.996784,0.00016,2]
[408609540,1773940253751,-193.41456933,0.00016,2]
[408609541,1773940253761,-499.99,0.00016006,2]
[408609542,1773940253770,-283.32,0.00016006,2]
[408609543,1773940253782,-1400.0,0.00016008,2]
[408609544,1773940253792,-3000.0,0.00016008,2]
[408609545,1773940253802,-164.03,0.00016024,2]
[408609546,1773940253812,-168.35,0.00016027,2]
[408609547,1773940253822,-267.0,0.00016067,2]
[408609548,1773940253831,-168.35,0.00016085,2]
[408609549,1773940253841,-267.0,0.00016089,2]
[408609550,1773940253851,-26596.98788362,0.000161,2]
[408609551,1773940253861,-193.41456933,0.000161,2]
[408609552,1773940253870,-267.0,0.00016106,2]
[408609553,1773940253880,-194.919802,0.00016111,7]
[408609554,1773940253890,-8030.45,0.00016116,2]
[408609555,1773940253899,-200.0,0.00016118,2]
[408609556,1773940253909,-168.35,0.00016142,2]
[408609557,1773940253918,-267.0,0.00016162,2]
[408609558,1773940253930,-150.0,0.00016169,2]
[408609559,1773940253941,-150.0,0.00016169,7]
[408609560,1773940253950,-151.0,0.00016197,2]
[408609561,1773940253960,-2500.0,0.00016199,2]
[408609562,1773940253970,-2500.0,0.00016199,2]
[408609563,1773940253979,-2500.0,0.00016199,2]
[408609564,1773940253989,-2635.17071886,0.00016199,2]
[408609565,1773940253999,-164.63,0.000162,2]
[408609566,1773940254009,-2000.0,0.000162,2]
[408609567,1773940254019,-151.0,0.000162,2]
[408609568,1773940254029,-151.0,0.000162,2]
[408609569,1773940254039,-151.0,0.000162,2]
[408609570,1773940254048,-217.417696,0.000162,2]
[408609571,1773940254058,-151.0,0.000162,2]
[408609572,1773940254068,-151.0,0.000162,2]
[408609573,1773940254078,-151.0,0.000162,2]
[408609574,1773940254088,-151.0,0.000162,2]
[408609575,1773940254098,-151.0,0.000162,2]
[408609576,1773940254108,-151.0,0.000162,2]
[408609577,1773940254120,-151.0,0.000162,2]
[408609578,1773940254130,-151.0,0.000162,2]
[408609579,1773940254141,-151.0,0.000162,2]
[408609580,1773940254150,-1717.222663,0.000162,2]
[408609581,1773940254161,-151.0,0.000162,2]
[408609582,1773940254170,-449.665046,0.000162,2]
[408609583,1773940254181,-1717.222663,0.000162,2]
[408609584,1773940254191,-151.0,0.000162,2]
[408609585,1773940254201,-449.665046,0.000162,2]
[408609586,1773940254211,-522.569021,0.000162,2]
[408609587,1773940254221,-1717.222663,0.000162,2]
[408609588,1773940254231,-274.689312,0.000162,2]
[408609589,1773940254241,-635.669873,0.000162,2]
[408609590,1773940254251,-522.569021,0.000162,2]
[408609591,1773940254260,-1717.222663,0.000162,2]
[408609592,1773940254270,-449.665046,0.000162,2]
[408609593,1773940254280,-635.669873,0.000162,2]
[408609594,1773940254289,-522.569021,0.000162,2]
[408609595,1773940254299,-449.665046,0.000162,2]
[408609596,1773940254309,-635.669873,0.000162,2]
[408609597,1773940254319,-522.569021,0.000162,2]
[408609598,1773940254328,-635.669873,0.000162,2]
[408609599,1773940254339,-1899.928492,0.000162,2]
[408609600,1773940254354,-151.0,0.000162,2]
[408609601,1773940254365,-1899.928492,0.000162,2]
[408609602,1773940254374,-1899.928492,0.000162,2]
[408609603,1773940254387,-1899.928492,0.000162,2]
[408609604,1773940254397,-1325.1,0.000162,2]
[408609605,1773940254406,-1325.1,0.000162,2]
[408609606,1773940254416,-1325.1,0.000162,2]
[408609607,1773940254427,-1325.1,0.000162,2]
[408609608,1773940254437,-180.72915,0.000162,2]
[408609609,1773940254448,-180.72915,0.000162,2]
[408609610,1773940254457,-180.72915,0.000162,2]
[408609611,1773940254467,-180.72915,0.000162,2]
[408609612,1773940254477,-267.0,0.00016203,2]
[408609613,1773940254487,-161.0,0.00016207,2]
[408609614,1773940254498,-150.0,0.00016222,2]
[408609615,1773940254508,-150.0,0.00016222,2]
[408609616,1773940254517,-150.0,0.00016222,2]
[408609617,1773940254527,-150.0,0.00016222,2]
[408609618,1773940254537,-150.0,0.00016222,2]
[408609619,1773940254547,-176.0,0.00016222,2]
[408609620,1773940254557,-267.0,0.00016262,2]
[408609621,1773940254567,-200.0,0.00016279,2]
[408609622,1773940254595,-2400.0,0.00016282,2]
[408609623,1773940254604,-1957.58,0.00016282,2]
[408609624,1773940254614,-16248.69989976,0.0001633,2]
[408609625,1773940254624,-495.537618,0.00016393,7]
[408609626,1773940254634,-166.7736,0.00016393,7]
[408609627,1773940254646,-320.660149,0.00016393,7]
[408609628,1773940254656,-225.570179,0.00016393,7]
[408609629,1773940254666,-203.492864,0.00016393,7]
[408609630,1773940254676,-201.698091,0.00016393,7]
[408609631,1773940254686,-166.095334,0.00016393,7]
[408609632,1773940254697,-311.065602,0.00016393,7]
[408609633,1773940254706,-2690.99,0.00016438,2]
[408609634,1773940254716,-671.4,0.00016438,2]
[408609635,1773940254725,-500.0,0.00016438,2]
[408609636,1773940254735,-500.0,0.00016438,2]
[408609637,1773940254744,-500.0,0.00016438,2]
[408609638,1773940254754,-500.0,0.00016438,2]
[408609639,1773940254763,-500.0,0.00016438,2]
[408609640,1773940254772,-500.0,0.00016438,2]
[408609641,1773940254782,-500.0,0.00016438,2]
[408609642,1773940254792,-500.0,0.00016438,2]
[408609643,1773940254801,-500.0,0.00016438,2]
[408609644,1773940254811,-500.0,0.00016438,2]
[408609645,1773940254820,-500.0,0.00016438,2]
[408609646,1773940254831,-500.0,0.00016438,2]
[408609647,1773940254840,-500.0,0.00016438,2]
[408609648,1773940254849,-500.0,0.00016438,2]
[408609649,1773940254859,-500.0,0.00016438,2]
[408609650,1773940254868,-500.0,0.00016438,2]
[408609651,1773940254879,-500.0,0.00016438,2]
[408609652,1773940254888,-500.0,0.00016438,2]
[408609653,1773940254898,-345.0,0.00016438,2]
[408609654,1773940254907,-175.62760547,0.00016438,2]
[408609655,1773940254917,-500.0,0.00016438,2]
[408609656,1773940254926,-500.0,0.00016438,2]
[408609657,1773940254935,-500.0,0.00016438,2]
[408609658,1773940254944,-500.0,0.00016438,2]
[408609659,1773940254954,-500.0,0.00016438,2]
[408609660,1773940254963,-500.0,0.00016438,2]
[408609661,1773940254973,-500.0,0.00016438,2]
[408609662,1773940254982,-500.0,0.00016438,2]
[408609663,1773940254991,-500.0,0.00016438,2]
[408609664,1773940255002,-500.0,0.00016438,2]
[408609665,1773940255012,-500.0,0.00016438,2]
[408609666,1773940255022,-500.0,0.00016438,2]
[408609667,1773940255032,-500.0,0.00016438,2]
[408609668,1773940255228,-500.0,0.00016438,2]
[408609669,1773940255240,-500.0,0.00016438,2]
[408609670,1773940255250,-500.0,0.00016438,2]
[408609671,1773940255259,-500.0,0.00016438,2]
[408609672,1773940255267,-500.0,0.00016438,2]
[408609673,1773940255276,-500.0,0.00016438,2]
[408609674,1773940255285,-500.0,0.00016438,2]
[408609675,1773940255294,-500.0,0.00016438,2]
[408609676,1773940255303,-492.88905965,0.00016438,2]
[408609677,1773940255312,-4421.69,0.00016438,2]
[408609678,1773940255321,-152.0,0.00016438,2]
[408609679,1773940255330,-180.8462681,0.00016438,2]
[408609680,1773940255339,-655.62,0.00016438,2]
[408609681,1773940255351,-186.078238,0.00016438,2]
[408609682,1773940255360,-151.0,0.00016438,2]
[408609683,1773940255369,-151.0,0.00016438,2]
[408609684,1773940255378,-151.0,0.00016438,2]
[408609685,1773940255387,-151.0,0.00016438,2]
[408609686,1773940255396,-151.0,0.00016438,2]
[408609687,1773940255406,-151.0,0.00016438,2]
[408609688,1773940255415,-151.0,0.00016438,2]
[408609689,1773940255425,-151.0,0.00016438,2]
[408609690,1773940255434,-151.0,0.00016438,2]
[408609691,1773940255443,-151.0,0.00016438,2]
[408609692,1773940255452,-163.284762,0.00016438,2]
[408609693,1773940255461,-656.4847291,0.00016438,2]
[408609694,1773940255470,-3000.0,0.00016438,2]
[408609695,1773940255479,-3000.0,0.00016438,2]
[408609696,1773940255489,-200.0,0.00016442,2]
[408609697,1773940255498,-969.0,0.0001645,2]
[408609698,1773940255508,-4985.0,0.0001645,2]
[408609699,1773940255517,-159.96,0.00016512,2]
[408609700,1773940255526,-1567.0,0.00016527,2]
[408609701,1773940255537,-646.73020979,0.00016552,2]
[408609702,1773940255546,-2402.0,0.00016581,2]
[408609703,1773940255555,-267.0,0.00016646,2]
[408609704,1773940255565,-267.0,0.00016654,2]
[408609705,1773940255574,-1957.58,0.0001667,2]
[408609706,1773940255583,-161.0,0.00016689,2]
[408609707,1773940255592,-2022.0,0.000167,2]
[408609708,1773940255605,-267.0,0.00016714,2]
[408609709,1773940255615,-267.0,0.00016786,2]
[408609710,1773940255623,-300.0,0.00016796,2]
[408609711,1773940255633,-300.0,0.00016796,2]
[408609712,1773940255642,-300.0,0.00016796,2]
[408609713,1773940255652,-326.25,0.00016823,2]
[408609714,1773940255661,-827.81,0.000169,2]
[408609715,1773940255670,-267.0,0.00016948,2]
[408609716,1773940255679,-1500.0,0.00016986,2]
[408609717,1773940255688,-1500.0,0.00016986,2]
[408609718,1773940255697,-300.0,0.00016999,2]
[408609719,1773940255706,-28137.64787,0.00017,2]
[408609720,1773940255715,-300.0,0.00017,2]
[408609721,1773940255724,-17748.99109859,0.00017,2]
[408609722,1773940255733,-267.0,0.0001701,2]
[408609723,1773940255742,-267.0,0.0001703,2]
[408609724,1773940255751,-267.0,0.00017044,2]
[408609725,1773940255761,-267.0,0.00017051,2]
[408609726,1773940255770,-1957.58,0.00017058,2]
[408609727,1773940255779,-2624.3859133,0.000171,2]
[408609728,1773940255789,-267.0,0.00017109,2]
[408609729,1773940255798,-267.0,0.00017114,2]
[408609730,1773940255808,-1716.38,0.000172,2]
[408609731,1773940255817,-1065.26,0.000172,2]
[408609732,1773940255826,-1710.53,0.000172,2]
[408609733,1773940255836,-666.01,0.000172,2]
[408609734,1773940255846,-182.50884706,0.000172,2]
[408609735,1773940255856,-500.0,0.000172,2]
[408609736,1773940255865,-500.0,0.000172,2]
[408609737,1773940255875,-500.0,0.000172,5]
[408609738,1773940255884,-500.0,0.000172,2]
[408609739,1773940255893,-500.0,0.000172,5]
[408609740,1773940255904,-500.0,0.000172,2]
[408609741,1773940255913,-500.0,0.000172,2]
[408609742,1773940255922,-500.0,0.000172,2]
[408609743,1773940255932,-500.0,0.000172,2]
[408609744,1773940255942,-500.0,0.000172,2]
[408609745,1773940255951,-500.0,0.000172,2]
[408609746,1773940255960,-500.0,0.000172,5]
[408609747,1773940255969,-500.0,0.000172,2]
[408609748,1773940255978,-500.0,0.000172,2]
[408609749,1773940255987,-485.76001194,0.000172,2]
[408609750,1773940255996,-500.0,0.000172,5]
[408609751,1773940256007,-151.0,0.000172,2]
[408609752,1773940256016,-1215.0,0.00017249,2]
[408609753,1773940256026,-924.0,0.00017249,2]
[408609754,1773940256035,-6006.0,0.00017249,2]
[408609755,1773940256044,-2465.0,0.00017249,2]
[408609756,1773940256054,-414.0,0.00017249,2]
[408609757,1773940256063,-151.0,0.00017293,2]
[408609758,1773940256074,-151.0,0.00017293,2]
[408609759,1773940256084,-151.0,0.00017293,2]
[408609760,1773940256093,-412.338748,0.00017293,2]
[408609761,1773940256102,-258.946479,0.00017293,2]
[408609762,1773940256111,-412.338748,0.00017293,2]
[408609763,1773940256121,-258.946479,0.00017293,2]
[408609764,1773940256130,-412.338748,0.00017293,2]
[408609765,1773940256141,-258.946479,0.00017293,2]
[408609766,1773940256150,-412.338748,0.00017293,2]
[408609767,1773940256159,-258.946479,0.00017293,2]
[408609768,1773940256168,-151.0,0.00017293,2]
[408609769,1773940256177,-151.0,0.00017293,2]
[408609770,1773940256187,-151.0,0.00017293,2]
[408609771,1773940256195,-151.0,0.00017293,2]
[408609772,1773940256204,-10000.0,0.000173,14]
[408609773,1773940256214,-160.529523,0.000173,2]
[408609774,1773940256223,-160.529523,0.000173,2]
[408609775,1773940256232,-160.529523,0.000173,2]
[408609776,1773940256241,-160.529523,0.000173,2]
[408609777,1773940256250,-151.0,0.000173,2]
[408609778,1773940256259,-202.753099,0.000173,2]
[408609779,1773940256268,-151.0,0.000173,2]
[408609780,1773940256277,-151.0,0.000173,2]
[408609781,1773940256286,-194.721204,0.000173,2]
[408609782,1773940256295,-151.0,0.000173,2]
[408609783,1773940256304,-170.234932,0.000173,2]
[408609784,1773940256313,-170.234932,0.000173,2]
[408609785,1773940256322,-170.234932,0.000173,2]
[408609786,1773940256331,-170.234932,0.000173,2]
[408609787,1773940256340,-2345.0,0.00017326,2]
[408609788,1773940256353,-1400.0,0.00017378,7]
[408609789,1773940256362,-3000.0,0.00017378,7]
[408609790,1773940256371,-180.0,0.00017447,2]
[408609791,1773940256379,-300.0,0.00017458,2]
[408609792,1773940256390,-156.80233,0.00017459,2]
[408609793,1773940256399,-151.0,0.00017459,2]
[408609794,1773940256407,-151.0,0.00017459,2]
[408609795,1773940256416,-151.0,0.00017459,2]
[408609796,1773940256426,-151.0,0.00017459,2]
[408609797,1773940256435,-500.0,0.00017473,2]
[408609798,1773940256444,-467.87972842,0.00017473,2]
[408609799,1773940256453,-25000.0,0.00017474,3]
[408609800,1773940256462,-300.0,0.00017499,2]
[408609801,1773940256472,-396.0194569,0.00017499,2]
[408609802,1773940256481,-300.0,0.00017499,2]
[408609803,1773940256492,-300.0,0.00017499,2]
[408609804,1773940256501,-512314.86,0.000175,2]
[408609805,1773940256510,-151.0,0.000175,2]
[408609806,1773940256520,-151.0,0.000175,2]
[408609807,1773940256529,-151.0,0.000175,2]
[408609808,1773940256539,-151.0,0.000175,2]
[408609809,1773940256548,-151.0,0.000175,2]
[408609810,1773940256557,-204.685718,0.00017504,7]
[408609811,1773940256567,-230.668388,0.00017504,7]
[408609812,1773940256577,-1044.0,0.00017559,2]
[408609813,1773940256587,-3512.0,0.00017559,2]
[408609814,1773940256596,-1344.0,0.00017559,2]
[408609815,1773940256605,-620.0,0.00017559,2]
[408609816,1773940256614,-1261.0,0.00017559,2]
[408609817,1773940256623,-362.09636652,0.00017572,2]
[408609818,1773940256633,-2400.0,0.00017652,7]
[408609819,1773940256642,-164.63,0.000177,2]
[408609820,1773940256651,-800.0,0.00017808,2]
[408609821,1773940256659,-1420.24080288,0.00017836,2]
[408609822,1773940256668,-13254.06927392,0.000179,2]
[408609823,1773940256677,-20254.03499709,0.00017946,2]
[408609824,1773940256686,-1563.29800388,0.0001799,2]
[408609825,1773940256695,-764.379001,0.00017994,7]
[408609826,1773940256704,-245.057481,0.00017994,7]
[408609827,1773940256713,-300.0,0.00017999,2]
[408609828,1773940256722,-300.0,0.00017999,2]
[408609829,1773940256731,-13468.94519636,0.00018,5]
[408609830,1773940256740,-433285.10659087,0.00018,2]
[408609831,1773940256749,-1346.65249792,0.00018018,10]
[408609832,1773940256758,-161.5334,0.0001802,2]
[408609833,1773940256767,-161.5334,0.0001802,2]
[408609834,1773940256776,-151.0,0.00018024,2]
[408609835,1773940256786,-151.0,0.00018024,2]
[408609836,1773940256795,-151.0,0.00018024,2]
[408609837,1773940256804,-1477.73,0.00018024,2]
[408609838,1773940256813,-1789.59194906,0.000181,2]
[408609839,1773940256823,-151.0,0.000181,2]
[408609840,1773940256832,-259.04585,0.000181,2]
[408609841,1773940256842,-151.0,0.000181,2]
[408609842,1773940256852,-151.0,0.000181,2]
[408609843,1773940256861,-185.958624,0.000181,2]
[408609844,1773940256870,-151.0,0.000181,2]
[408609845,1773940256880,-151.0,0.000181,2]
[408609846,1773940256889,-151.0,0.000181,2]
[408609847,1773940256898,-1717.222663,0.000181,2]
[408609848,1773940256907,-293.842732,0.000181,2]
[408609849,1773940256917,-449.665046,0.000181,2]
[408609850,1773940256926,-151.0,0.000181,2]
[408609851,1773940256935,-1717.222663,0.000181,2]
[408609852,1773940256944,-151.0,0.000181,2]
[408609853,1773940256953,-151.0,0.000181,2]
[408609854,1773940256963,-449.665046,0.000181,2]
[408609855,1773940256972,-522.569021,0.000181,2]
[408609856,1773940256981,-1717.222663,0.000181,2]
[408609857,1773940256990,-635.669873,0.000181,2]
[408609858,1773940257000,-522.569021,0.000181,2]
[408609859,1773940257009,-151.0,0.000181,2]
[408609860,1773940257019,-1717.222663,0.000181,2]
[408609861,1773940257028,-449.665046,0.000181,2]
[408609862,1773940257039,-635.669873,0.000181,2]
[408609863,1773940257049,-522.569021,0.000181,2]
[408609864,1773940257059,-449.665046,0.000181,2]
[408609865,1773940257068,-635.669873,0.000181,2]
[408609866,1773940257077,-522.569021,0.000181,2]
[408609867,1773940257087,-635.669873,0.000181,2]
[408609868,1773940257096,-1899.928492,0.000181,2]
[408609869,1773940257105,-1899.928492,0.000181,2]
[408609870,1773940257115,-1899.928492,0.000181,2]
[408609871,1773940257125,-1899.928492,0.000181,2]
[408609872,1773940257134,-1325.1,0.000181,2]
[408609873,1773940257144,-1325.1,0.000181,2]
[408609874,1773940257153,-1325.1,0.000181,2]
[408609875,1773940257164,-1325.1,0.000181,2]
[408609876,1773940257173,-180.72915,0.000181,2]
[408609877,1773940257182,-180.72915,0.000181,2]
[408609878,1773940257192,-180.72915,0.000181,2]
[408609879,1773940257201,-180.72915,0.000181,2]
[408609880,1773940257210,-5800.0,0.00018128,2]
[408609881,1773940257220,-5800.0,0.00018136,2]
[408609882,1773940257229,-5800.0,0.00018136,2]
[408609883,1773940257238,-700.0,0.0001817,2]
[408609884,1773940257247,-300.0,0.0001817,2]
[408609885,1773940257256,-150.0,0.00018199,2]
[408609886,1773940257265,-827.81,0.000182,2]
[408609887,1773940257275,-150.0,0.000182,2]
[408609888,1773940257285,-3000.98565964,0.000182,2]
[408609889,1773940257294,-150.0,0.000182,2]
[408609890,1773940257303,-7783.51334903,0.000182,2]
[408609891,1773940257312,-150.0,0.000182,2]
[408609892,1773940257322,-475.57101972,0.000182,2]
[408609893,1773940257331,-161.5334,0.000182,2]
[408609894,1773940257342,-350.0,0.00018225,3]
[408609895,1773940257353,-2402.0,0.00018265,2]
[408609896,1773940257364,-1567.0,0.00018265,2]
[408609897,1773940257373,-350.0,0.0001827,2]
[408609898,1773940257383,-300.0,0.00018355,2]
[408609899,1773940257392,-89032.69,0.00018356,2]
[408609900,1773940257402,-802.01979016,0.0001841,2]
[408609901,1773940257411,-500.0,0.0001841,2]
[408609902,1773940257422,-500.0,0.0001841,2]
[408609903,1773940257431,-500.0,0.0001841,2]
[408609904,1773940257441,-500.0,0.0001841,2]
[408609905,1773940257501,-500.0,0.0001841,2]
[408609906,1773940257510,-500.0,0.0001841,2]
[408609907,1773940257520,-500.0,0.0001841,2]
[408609908,1773940257529,-500.0,0.0001841,2]
[408609909,1773940257539,-849.01517955,0.0001841,2]
[408609910,1773940257548,-500.0,0.0001841,2]
[408609911,1773940257558,-500.0,0.0001841,2]
[408609912,1773940257567,-500.0,0.0001841,2]
[408609913,1773940257577,-500.0,0.0001841,2]
[408609914,1773940257586,-500.0,0.0001841,2]
[408609915,1773940257595,-500.0,0.0001841,2]
[408609916,1773940257605,-500.0,0.0001841,2]
[408609917,1773940257615,-500.0,0.0001841,2]
[408609918,1773940257624,-500.0,0.0001841,2]
[408609919,1773940257633,-1400.0,0.00018474,7]
[408609920,1773940257642,-3000.0,0.00018474,7]
[408609921,1773940257652,-6512.0,0.00018523,2]
[408609922,1773940257661,-151.0,0.00018523,2]
[408609923,1773940257670,-151.0,0.00018523,2]
[408609924,1773940257679,-163.46278,0.00018523,2]
[408609925,1773940257689,-170.234932,0.00018523,2]
[408609926,1773940257697,-170.234932,0.00018523,2]
[408609927,1773940257707,-170.234932,0.00018523,2]
[408609928,1773940257716,-170.234932,0.00018523,2]
[408609929,1773940257725,-151.0,0.00018523,2]
[408609930,1773940257734,-151.0,0.00018523,2]
[408609931,1773940257744,-151.0,0.00018523,2]
[408609932,1773940257753,-412.338748,0.00018523,2]
[408609933,1773940257763,-258.946479,0.00018523,2]
[408609934,1773940257772,-412.338748,0.00018523,2]
[408609935,1773940257781,-258.946479,0.00018523,2]
[408609936,1773940257791,-412.338748,0.00018523,2]
[408609937,1773940257800,-258.946479,0.00018523,2]
[408609938,1773940257810,-412.338748,0.00018523,2]
[408609939,1773940257819,-258.946479,0.00018523,2]
[408609940,1773940257829,-151.0,0.00018523,2]
[408609941,1773940257839,-151.0,0.00018523,2]
[408609942,1773940257848,-151.0,0.00018523,2]
[408609943,1773940257857,-151.0,0.00018523,2]
[408609944,1773940257867,-350.0,0.00018596,2]
[408609945,1773940257876,-1716.38,0.000186,2]
[408609946,1773940257885,-1065.26,0.000186,2]
[408609947,1773940257894,-1710.53,0.000186,2]
[408609948,1773940257904,-666.01,0.000186,2]
[408609949,1773940257914,-160.529523,0.000186,2]
[408609950,1773940257923,-160.529523,0.000186,2]
[408609951,1773940257933,-160.529523,0.000186,2]
[408609952,1773940257941,-160.529523,0.000186,2]
[408609953,1773940257951,-472.707891,0.00018617,7]
[408609954,1773940257961,-350.0,0.00018646,2]
[408609955,1773940257970,-1275.00631368,0.00018682,2]
[408609956,1773940257979,-350.0,0.00018684,3]
[408609957,1773940257989,-160.0,0.00018748,7]
[408609958,1773940257998,-2400.0,0.00018748,7]
[408609959,1773940258007,-1000.0,0.00018842,2]
[408609960,1773940258016,-1062.0,0.00018875,2]
[408609961,1773940258025,-1600.0,0.00018904,2]
[408609962,1773940258035,-10000.0,0.00019,14]
[408609963,1773940258045,-4741.56459513,0.00019,2]
[408609964,1773940258054,-512314.86,0.00019,2]
[408609965,1773940258063,-350.0,0.00019,2]
[408609966,1773940258072,-151.0,0.00019,2]
[408609967,1773940258081,-151.0,0.00019,2]
[408609968,1773940258090,-281.0,0.00019178,2]
[408609969,1773940258099,-159.68380378,0.00019178,2]
[408609970,1773940258108,-3000.0,0.00019178,2]
[408609971,1773940258117,-151.0,0.00019178,2]
[408609972,1773940258126,-151.0,0.00019178,2]
[408609973,1773940258135,-151.0,0.00019178,2]
[408609974,1773940258144,-151.0,0.00019178,2]
[408609975,1773940258155,-168.844483,0.00019178,2]
[408609976,1773940258164,-151.0,0.00019178,2]
[408609977,1773940258173,-151.0,0.00019178,2]
[408609978,1773940258182,-151.0,0.00019178,2]
[408609979,1773940258190,-173.662456,0.00019178,2]
[408609980,1773940258200,-173.662456,0.00019178,2]
[408609981,1773940258209,-173.662456,0.00019178,2]
[408609982,1773940258219,-173.662456,0.00019178,2]
[408609983,1773940258228,-173.662456,0.00019178,2]
[408609984,1773940258238,-173.662456,0.00019178,2]
[408609985,1773940258249,-173.662456,0.00019178,2]
[408609986,1773940258258,-173.662456,0.00019178,2]
[408609987,1773940258267,-173.662456,0.00019178,2]
[408609988,1773940258275,-173.662456,0.00019178,2]
[408609989,1773940258285,-173.662456,0.00019178,2]
[408609990,1773940258293,-173.662456,0.00019178,2]
[408609991,1773940258302,-225.567109,0.00019178,2]
[408609992,1773940258311,-225.567109,0.00019178,2]
[408609993,1773940258320,-225.567109,0.00019178,2]
[408609994,1773940258331,-225.567109,0.00019178,2]
[408609995,1773940258340,-225.567109,0.00019178,2]
[408609996,1773940258351,-225.567109,0.00019178,2]
[408609997,1773940258360,-225.567109,0.00019178,2]
[408609998,1773940258369,-225.567109,0.00019178,2]
[408609999,1773940258377,-225.567109,0.00019178,2]
[408610000,1773940258385,-151.0,0.00019178,2]
[408610001,1773940258396,-151.0,0.00019178,2]
[408610002,1773940258405,-151.0,0.00019178,2]
[408610003,1773940258414,-225.567109,0.00019178,2]
[408610004,1773940258424,-225.567109,0.00019178,2]
[408610005,1773940258432,-225.567109,0.00019178,2]
[408610006,1773940258441,-151.0,0.00019178,2]
[408610007,1773940258450,-159.572741,0.00019178,2]
[408610008,1773940258459,-5561.317482,0.00019178,2]
[408610009,1773940258468,-5561.317482,0.00019178,2]
[408610010,1773940258477,-5561.317482,0.00019178,2]
[408610011,1773940258491,-5561.317482,0.00019178,2]
[408610012,1773940258500,-5561.317482,0.00019178,2]
[408610013,1773940258509,-5561.317482,0.00019178,2]
[408610014,1773940258518,-5561.317482,0.00019178,2]
[408610015,1773940258527,-5561.317482,0.00019178,2]
[408610016,1773940258537,-5561.317482,0.00019178,2]
[408610017,1773940258546,-5561.317482,0.00019178,2]
[408610018,1773940258555,-5561.317482,0.00019178,2]
[408610019,1773940258565,-5561.317482,0.00019178,2]
[408610020,1773940258574,-150.0,0.00019178,2]
[408610021,1773940258583,-160.12456001,0.00019178,2]
[408610022,1773940258593,-150.0,0.00019178,2]
[408610023,1773940258603,-164.63,0.000192,7]
[408610024,1773940258616,-1000.0,0.000192,2]
[408610025,1773940258625,-181.6,0.00019262,14]
[408610026,1773940258635,-181.6,0.00019262,14]
[408610027,1773940258644,-181.6,0.00019262,14]
[408610028,1773940258653,-10000.0,0.000193,7]
[408610029,1773940258663,-281.13,0.00019346,2]